[Event "EWIRCC 2019"]
[Site "Monte-Carlo"]
[Date "2019.12.01"]
[Round "9.16"]
[White "Solozhenkina, Elizaveta"]
[Black "Dornbusch, Tatiana"]
[Result "0-1"]
[ECO "B03"]
[WhiteElo "2314"]
[BlackElo "2269"]
[Annotator "NA"]
[PlyCount "105"]
[EventDate "2019.11.28"]
[EventType "swiss"]
[EventCountry "MNC"]
[SourceTitle "playchess.com"]
[Source "ChessBase"]
[SourceQuality "1"]
[TimeControl "5400+30"]

1. e4 {[%emt 1:15:11]} Nf6 {[%emt 1:15:11]} 2. e5 {[%emt 0:00:22]} Nd5 {[%emt 0:00:21]} 3. d4 {[%emt 0:00:21]} d6 {[%emt 0:00:21]} 4. c4 {[%emt 0:00:20]} Nb6 {[%emt 0:00:21]} 5. exd6 {[%emt 0:00:22]} exd6 {[%emt 0:00:21]} 6. Nc3 {[%emt 0:00:21]} Be7 {[%emt 0:00:22]} 7. Nf3 {[%emt 0:01:04]} Bg4 {[%emt 0:00:37]} 8. h3 {[%emt 0:00:27]} Bh5 {[%emt 0:00:31]} 9. g4 {[%emt 0:02:11]} Bg6 {[%emt 0:00:26]} 10. h4 {[%emt 0:01:28]} h6 {[%emt 0:03:02]} 11. Bf4 {[%emt 0:03:54]} Bf6 {[%emt 0:04:14]} 12. Qe2+ {[%emt 0:01:56]} Qe7 {[%emt 0:00:42]} 13. O-O-O {[%emt 0:00:43]} Nc6 {[%emt 0:03:06]} 14. Qxe7+ {[%emt 0:01:19]} Bxe7 {[%emt 0:01:01]} 15. d5 {[%emt 0:03:06]} Nb4 {[%emt 0:02:24]} 16. a3 {[%emt 0:00:52]} Na6 {[%emt 0:00:25]} 17. Re1 {[%emt 0:01:07]} Nc5 {[%emt 0:00:43]} 18. Nd4 {[%emt 0:00:38]} Kd7 {[%emt 0:00:40]} 19. Rh3 {[%emt 0:02:17]} Bf6 {[%emt 0:00:47]} 20. Nc2 {[%emt 0:00:52]} Rae8 {[%emt 0:01:14]} 21. Ree3 {[%emt 0:00:58]} Nb3+ {[%emt 0:00:59]} 22. Kd1 {[%emt 0:00:28]} Nd4 {[%emt 0:00:32]} 23. Ne1 {[%emt 0:00:44]} a5 {[%emt 0:00:36]} 24. g5 {[%emt 0:00:25]} Bh5+ {[%emt 0:01:52]} 25. Kc1 {[%emt 0:00:36]} Bd8 {[%emt 0:00:28]} 26. Bd3 {[%emt 0:00:32]} hxg5 {[%emt 0:00:34]} 27. hxg5 {[%emt 0:00:23]} Bg4 {[%emt 0:00:23]} 28. Rxh8 {[%emt 0:00:30]} Rxh8 {[%emt 0:00:21]} 29. Rg3 {[%emt 0:00:30]} Bf5 {[%emt 0:00:23]} 30. Be3 {[%emt 0:00:41]} Bxd3 {[%emt 0:00:44]} 31. Bxd4 {[%emt 0:00:33]} Bxc4 {[%emt 0:00:38]} 32. Bxg7 {[%emt 0:00:21]} Rh1 {[%emt 0:00:22]} 33. Kd2 {[%emt 0:00:21]} Bxd5 {[%emt 0:00:27]} 34. Nd3 {[%emt 0:00:42]} Nc4+ {[%emt 0:00:43]} 35. Kc2 {[%emt 0:00:21]} Bc6 {[%emt 0:00:23]} 36. Rg4 {[%emt 0:00:42]} b5 {[%emt 0:00:25]} 37. a4 {[%emt 0:00:24]} b4 {[%emt 0:00:53]} 38. Rxc4 {[%emt 0:00:29]} bxc3 {[%emt 0:00:22]} 39. Bxc3 {[%emt 0:00:23]} Bxg5 {[%emt 0:00:49]} 40. Bxa5 {[%emt 0:00:22]} Rh4 {[%emt 0:00:41]} 41. f4 {[%emt 0:00:38]} Rh2+ {[%emt 0:00:24]} 42. Bd2 {[%emt 0:00:21]} Bh4 {[%emt 0:00:49]} 43. Rb4 {[%emt 0:00:35]} f5 {[%emt 0:00:26]} 44. a5 {[%emt 0:00:22]} Be4 {[%emt 0:00:23]} 45. a6 {[%emt 0:00:51]} Be1 {[%emt 0:00:21]} 46. a7 {[%emt 0:00:41]} Rxd2+ {[%emt 0:00:27]} 47. Kc1 {[%emt 0:00:22]} Bf3 {[%emt 0:00:34]} 48. Nxe1 {[%emt 0:00:40]} Rd1+ {[%emt 0:00:21]} 49. Kc2 {[%emt 0:00:21]} Rxe1 {[%emt 0:00:21]} 50. Rb8 {[%emt 0:00:31]} Re8 {[%emt 0:00:23]} 51. b4 {[%emt 0:00:26]} Re2+ {[%emt 0:01:00]} 52. Kc3 {[%emt 0:00:21]} Ra2 {[%emt 0:00:22]} 53. Kd4 {[%emt 0:01:05]} 0-1

[Event "EWIRCC 2019"]
[Site "Monte-Carlo"]
[Date "2019.12.01"]
[Round "9.17"]
[White "Socko, Monika"]
[Black "Berzina, Ilze"]
[Result "1-0"]
[ECO "D30"]
[WhiteElo "2417"]
[BlackElo "2211"]
[Annotator "NA"]
[PlyCount "61"]
[EventDate "2019.11.28"]
[EventType "swiss"]
[EventCountry "MNC"]
[SourceTitle "playchess.com"]
[Source "ChessBase"]
[SourceQuality "1"]
[TimeControl "5400+30"]

1. d4 {[%emt 1:15:12]} d5 {[%emt 1:15:12]} 2. c4 {[%emt 0:00:21]} c6 {[%emt 0:00:22]} 3. Nf3 {[%emt 0:00:22]} e6 {[%emt 0:00:22]} 4. Nbd2 {[%emt 0:00:56]} Nf6 {[%emt 0:00:49]} 5. g3 {[%emt 0:00:23]} c5 {[%emt 0:00:24]} 6. Bg2 {[%emt 0:00:47]} Nc6 {[%emt 0:00:24]} 7. cxd5 {[%emt 0:00:49]} exd5 {[%emt 0:00:28]} 8. dxc5 {[%emt 0:00:31]} Bxc5 {[%emt 0:00:21]} 9. O-O {[%emt 0:00:23]} O-O {[%emt 0:00:24]} 10. Nb3 {[%emt 0:00:22]} Bb6 {[%emt 0:00:27]} 11. Nfd4 {[%emt 0:00:53]} Ne4 {[%emt 0:01:04]} 12. Be3 {[%emt 0:00:51]} Ne5 {[%emt 0:01:17]} 13. Qc2 {[%emt 0:01:51]} Re8 {[%emt 0:02:53]} 14. Rad1 {[%emt 0:01:12]} Qf6 {[%emt 0:00:57]} 15. a4 {[%emt 0:04:57]} a5 {[%emt 0:01:28]} 16. Nb5 {[%emt 0:01:08]} Bxe3 {[%emt 0:01:24]} 17. fxe3 {[%emt 0:00:22]} Qh6 {[%emt 0:00:22]} 18. Bxe4 {[%emt 0:02:16]} dxe4 {[%emt 0:00:51]} 19. Qxe4 {[%emt 0:02:04]} Bh3 {[%emt 0:02:23]} 20. Nd6 {[%emt 0:00:30]} Bxf1 {[%emt 0:00:37]} 21. Nxe8 {[%emt 0:02:46]} Bxe2 {[%emt 0:00:22]} 22. Rd6 {[%emt 0:00:21]} Rxe8 {[%emt 0:00:37]} 23. Rxh6 {[%emt 0:00:24]} Nf3+ {[%emt 0:00:22]} 24. Qxf3 {[%emt 0:00:22]} Bxf3 {[%emt 0:00:26]} 25. Rd6 {[%emt 0:00:29]} g5 {[%emt 0:02:27]} 26. Kf2 {[%emt 0:00:24]} g4 {[%emt 0:00:32]} 27. Nd4 {[%emt 0:00:39]} Bd1 {[%emt 0:00:45]} 28. b3 {[%emt 0:01:08]} Rc8 {[%emt 0:00:50]} 29. Rd5 {[%emt 0:00:29]} b6 {[%emt 0:01:04]} 30. Rd6 {[%emt 0:00:37]} Rb8 {[%emt 0:00:52]} 31. Nc6 {[%emt 0:00:25]} 1-0

[Event "EWIRCC 2019"]
[Site "Monte-Carlo"]
[Date "2019.12.01"]
[Round "9.19"]
[White "Savina, Anastasia"]
[Black "Semenova, Elena"]
[Result "1-0"]
[ECO "D26"]
[WhiteElo "2354"]
[BlackElo "2282"]
[Annotator "ChessBase"]
[PlyCount "177"]
[EventDate "2019.11.28"]
[EventType "swiss"]
[EventCountry "MNC"]
[SourceTitle "playchess.com"]
[Source "ChessBase"]
[SourceQuality "1"]
[TimeControl "5400+30"]

1. d4 {[%emt 1:15:13]} d5 {[%emt 1:15:11]} 2. c4 {[%emt 0:00:22]} dxc4 {[%emt 0:00:21]} 3. Nf3 {[%emt 0:00:23]} Nf6 {[%emt 0:00:22]} 4. e3 {[%emt 0:00:21]} e6 {[%emt 0:00:24]} 5. Bxc4 {[%emt 0:00:23]} c5 {[%emt 0:00:22]} 6. O-O {[%emt 0:00:23]} cxd4 {[%emt 0:00:21]} 7. exd4 {[%emt 0:01:09]} Be7 {[%emt 0:00:22]} 8. Nc3 {[%emt 0:01:01]} O-O {[%emt 0:00:24]} 9. Re1 {[%emt 0:01:42]} Nc6 {[%emt 0:00:46]} 10. a3 {[%emt 0:00:43]} b6 {[%emt 0:01:11]} 11. d5 {[%emt 0:02:05]} Nxd5 {[%emt 0:02:52]} 12. Nxd5 {[%emt 0:01:34]} exd5 {[%emt 0:00:22]} 13. Bxd5 {[%emt 0:08:25]} Bb7 {[%emt 0:00:54]} 14. Bf4 {[%emt 0:00:30]} Rc8 {[%emt 0:02:21]} 15. Rc1 {[%emt 0:01:34]} Bf6 {[%emt 0:01:33]} 16. b4 {[%emt 0:01:36]} Qd7 {[%emt 0:03:11]} 17. Be4 {[%emt 0:00:54]} Qg4 {[%emt 0:02:38]} 18. Bg3 {[%emt 0:00:29]} Rfd8 {[%emt 0:00:33]} 19. Qa4 {[%emt 0:00:29]} Nd4 {[%emt 0:02:34]} 20. Nxd4 {[%emt 0:00:32]} Rxc1 {[%emt 0:00:54]} 21. Rxc1 {[%emt 0:00:23]} Qxe4 {[%emt 0:01:03]} 22. Nf3 {[%emt 0:00:22]} a5 {[%emt 0:01:07]} 23. h3 {[%emt 0:00:38]} axb4 {[%emt 0:00:23]} 24. axb4 {[%emt 0:00:21]} h6 {[%emt 0:00:26]} 25. Qb5 {[%emt 0:00:38]} Qe6 {[%emt 0:00:43]} 26. Re1 {[%emt 0:00:34]} Qb3 {[%emt 0:00:57]} 27. Re8+ {[%emt 0:00:31]} Rxe8 {[%emt 0:00:23]} 28. Qxe8+ {[%emt 0:00:21]} Kh7 {[%emt 0:00:21]} 29. Ne5 {[%emt 0:00:38]} Qd5 {[%emt 0:00:57]} 30. f3 {[%emt 0:00:30]} Qd8 {[%emt 0:00:40]} 31. Qxd8 {[%emt 0:00:31]} Bxd8 {[%emt 0:00:21]} 32. Nxf7 {[%emt 0:00:23]} Be7 {[%emt 0:00:24]} 33. Bd6 {[%emt 0:00:24]} Bf6 {[%emt 0:00:41]} 34. Be5 {[%emt 0:00:35]} Be7 {[%emt 0:00:35]} 35. Bc3 {[%emt 0:00:28]} Kg6 {[%emt 0:00:26]} 36. Ne5+ {[%emt 0:00:22]} Kf5 {[%emt 0:00:25]} 37. Nc4 {[%emt 0:00:48]} b5 {[%emt 0:00:32]} 38. Na3 {[%emt 0:00:23]} Bc6 {[%emt 0:00:26]} 39. Nc2 {[%emt 0:00:21]} Bf6 {[%emt 0:00:33]} 40. Bxf6 {[%emt 0:00:28]} Kxf6 {[%emt 0:00:20]} 41. Kf2 {[%emt 0:00:26]} Ke5 {[%emt 0:00:24]} 42. Ke3 {[%emt 0:00:22]} Kd5 {[%emt 0:00:23]} 43. Kd3 {[%emt 0:00:22]} Be8 {[%emt 0:00:24]} 44. Ne3+ {[%emt 0:00:28]} Ke5 {[%emt 0:00:22]} 45. g3 {[%emt 0:00:34]} Bg6+ {[%emt 0:00:38]} 46. Kc3 {[%emt 0:00:22]} Bf7 {[%emt 0:00:40]} 47. Ng4+ {[%emt 0:01:06]} Kd5 {[%emt 0:00:24]} 48. Nf2 {[%emt 0:00:35]} Be6 {[%emt 0:00:34]} 49. Nd3 {[%emt 0:00:33]} g5 {[%emt 0:00:33]} 50. g4 {[%emt 0:00:22]} Bf7 {[%emt 0:00:27]} 51. Nc5 {[%emt 0:00:39]} Bg6 {[%emt 0:00:35]} 52. Nd3 {[%emt 0:00:30]} Bf7 {[%emt 0:00:22]} 53. Nc1 {[%emt 0:00:31]} Ke5 {[%emt 0:00:33]} 54. Nd3+ {[%emt 0:00:29]} Kd5 {[%emt 0:00:21]} 55. f4 {[%emt 0:00:21]} gxf4 {[%emt 0:00:29]} 56. Nxf4+ {[%emt 0:00:21]} Ke4 {[%emt 0:00:31]} 57. Ne2 {[%emt 0:00:34]} Kf3 {[%emt 0:01:05]} 58. Nd4+ {[%emt 0:00:22]} Kg3 {[%emt 0:00:27]} 59. Nf5+ {[%emt 0:00:29]} Kxh3 {[%emt 0:00:25]} 60. Nxh6 {[%emt 0:00:21]} Be8 {[%emt 0:00:41]} 61. Kd4 {[%emt 0:00:35]} Kh4 {[%emt 0:00:22]} 62. Ke5 {[%emt 0:00:28]} Kg5 {[%emt 0:00:28]} 63. Ng8 {[%emt 0:00:21]} Bf7 {[%emt 0:00:32]} 64. Nf6 {[%emt 0:00:26]} Bc4 {[%emt 0:00:23]} 65. Nd5 {[%emt 0:00:40]} Bd3 {[%emt 0:00:43]} 66. Ne3 {[%emt 0:00:46]} Be2 {[%emt 0:00:24]} 67. Ke4 {[%emt 0:00:28]} Kg6 {[%emt 0:00:40]} 68. Kf4 {[%emt 0:00:28]} Bd3 {[%emt 0:00:24]} 69. g5 {[%emt 0:00:23]} Kf7 {[%emt 0:00:32]} 70. Ng4 {[%emt 0:00:33]} Bc2 {[%emt 0:00:31]} 71. Ne3 {[%emt 0:00:51]} Bd3 {[%emt 0:00:27]} 72. Ng2 {[%emt 0:00:31]} Ke6 {[%emt 0:00:35]} 73. Ne3 {[%emt 0:00:31]} Bg6 {[%emt 0:00:32]} 74. Ng4 {[%emt 0:00:30]} Kd5 {[%emt 0:00:34]} 75. Ne5 {[%emt 0:00:32]} Be8 {[%emt 0:00:25]} 76. Kf5 {[%emt 0:00:27]} Kd4 {[%emt 0:00:31]} 77. Kf6 {[%emt 0:00:32]} Bh5 {[%emt 0:00:30]} 78. Nc6+ {[%emt 0:00:31]} Kd5 {[%emt 0:00:35]} 79. Na5 {[%emt 0:00:23]} Kd4 {[%emt 0:00:29]} 80. g6 {[%emt 0:00:29]} Bf3 {[%emt 0:00:32]} 81. g7 {[%emt 0:00:27]} Bd5 {[%emt 0:00:21]} 82. Nc6+ {[%emt 0:00:35]} Kc4 {[%emt 0:00:38]} 83. Ke5 {[%emt 0:00:34]} Bg8 {[%emt 0:00:28]} 84. Kd6 {[%emt 0:00:24]} Bh7 {[%emt 0:00:26]} 85. Kc7 {[%emt 0:00:27]} Bg8 {[%emt 0:00:27]} 86. Kb6 {[%emt 0:00:22]} Bh7 {[%emt 0:00:23]} 87. Ka5 {[%emt 0:00:23]} Bg8 {[%emt 0:00:24]} 88. Ne7 {[%emt 0:00:23]} Bh7 {[%emt 0:00:22]} 89. g8=Q+ {[%emt 0:00:00] Kd5} 1-0

[Event "EWIRCC 2019"]
[Site "Monte-Carlo"]
[Date "2019.12.01"]
[Round "9.20"]
[White "Babiy, Olga"]
[Black "Muetsch, Annmarie"]
[Result "1/2-1/2"]
[ECO "B35"]
[WhiteElo "2249"]
[BlackElo "2240"]
[Annotator "NA"]
[PlyCount "117"]
[EventDate "2019.11.28"]
[EventType "swiss"]
[EventCountry "MNC"]
[SourceTitle "playchess.com"]
[Source "ChessBase"]
[SourceQuality "1"]
[TimeControl "5400+30"]

1. e4 {[%emt 1:15:11]} c5 {[%emt 1:15:13]} 2. Nc3 {[%emt 0:00:38]} Nc6 {[%emt 0:00:34]} 3. Nge2 {[%emt 0:00:21]} g6 {[%emt 0:00:49]} 4. d4 {[%emt 0:00:22]} cxd4 {[%emt 0:00:22]} 5. Nxd4 {[%emt 0:00:21]} Bg7 {[%emt 0:00:22]} 6. Be3 {[%emt 0:00:21]} Nf6 {[%emt 0:00:26]} 7. Bc4 {[%emt 0:00:21]} O-O {[%emt 0:00:25]} 8. Bb3 {[%emt 0:00:22]} Re8 {[%emt 0:00:50]} 9. h3 {[%emt 0:00:44]} e6 {[%emt 0:01:01]} 10. O-O {[%emt 0:02:33]} d5 {[%emt 0:02:12]} 11. exd5 {[%emt 0:00:23]} Nxd5 {[%emt 0:00:43]} 12. Nxd5 {[%emt 0:00:51]} exd5 {[%emt 0:00:29]} 13. c3 {[%emt 0:00:23]} Na5 {[%emt 0:00:59]} 14. Qd3 {[%emt 0:01:30]} b6 {[%emt 0:02:00]} 15. Rad1 {[%emt 0:01:24]} Bb7 {[%emt 0:00:39]} 16. Nf3 {[%emt 0:01:14]} Qc7 {[%emt 0:03:31]} 17. Bd4 {[%emt 0:00:33]} Nc4 {[%emt 0:01:18]} 18. Bxg7 {[%emt 0:00:22]} Kxg7 {[%emt 0:00:28]} 19. Qc2 {[%emt 0:00:22]} Rad8 {[%emt 0:00:50]} 20. Rfe1 {[%emt 0:01:21]} Qf4 {[%emt 0:01:50]} 21. Rd4 {[%emt 0:02:47]} Rxe1+ {[%emt 0:00:48]} 22. Nxe1 {[%emt 0:00:23]} Qc7 {[%emt 0:00:26]} 23. Qe2 {[%emt 0:00:56]} b5 {[%emt 0:01:06]} 24. Nf3 {[%emt 0:01:23]} Bc6 {[%emt 0:00:53]} 25. Rd1 {[%emt 0:01:56]} Re8 {[%emt 0:00:31]} 26. Qc2 {[%emt 0:00:21]} Qf4 {[%emt 0:01:35]} 27. Rd4 {[%emt 0:02:12]} Qf6 {[%emt 0:00:27]} 28. Qc1 {[%emt 0:00:41]} h6 {[%emt 0:00:46]} 29. Bc2 {[%emt 0:00:24]} Ne5 {[%emt 0:00:47]} 30. Nxe5 {[%emt 0:00:31]} Rxe5 {[%emt 0:00:27]} 31. Qd2 {[%emt 0:01:44]} Qe7 {[%emt 0:00:32]} 32. Bd1 {[%emt 0:00:26]} Re1+ {[%emt 0:00:29]} 33. Kh2 {[%emt 0:00:21]} Qe5+ {[%emt 0:00:35]} 34. g3 {[%emt 0:00:37]} h5 {[%emt 0:00:47]} 35. Bf3 {[%emt 0:00:41]} Rb1 {[%emt 0:01:06]} 36. Kg2 {[%emt 0:00:32]} a6 {[%emt 0:00:56]} 37. Bd1 {[%emt 0:01:12]} a5 {[%emt 0:00:43]} 38. Bf3 {[%emt 0:00:44]} a4 {[%emt 0:00:28]} 39. a3 {[%emt 0:00:21]} Kh7 {[%emt 0:00:46]} 40. Rb4 {[%emt 0:01:19]} Ra1 {[%emt 0:00:32]} 41. Rf4 {[%emt 0:00:29]} Kg8 {[%emt 0:00:23]} 42. Rd4 {[%emt 0:00:28]} Rb1 {[%emt 0:00:22]} 43. Kh2 {[%emt 0:00:29]} Kg7 {[%emt 0:00:24]} 44. Kg2 {[%emt 0:00:43]} Kg8 {[%emt 0:00:22]} 45. Rf4 {[%emt 0:00:38]} Ra1 {[%emt 0:00:25]} 46. Rd4 {[%emt 0:00:20]} Rb1 {[%emt 0:00:22]} 47. Rd3 {[%emt 0:00:26]} Kg7 {[%emt 0:00:33]} 48. Re3 {[%emt 0:00:23]} Qf6 {[%emt 0:00:34]} 49. h4 {[%emt 0:00:38]} Kh7 {[%emt 0:00:31]} 50. Qc2 {[%emt 0:00:46]} Ra1 {[%emt 0:00:25]} 51. Qd2 {[%emt 0:00:39]} Rb1 {[%emt 0:00:22]} 52. Qc2 {[%emt 0:00:20]} Ra1 {[%emt 0:00:21]} 53. Qd2 {[%emt 0:00:22]} Rb1 {[%emt 0:00:22]} 54. Qc2 {[%emt 0:00:31]} Ra1 {[%emt 0:00:22]} 55. Qd2 {[%emt 0:00:51]} Rb1 {[%emt 0:00:21]} 56. Rd3 {[%emt 0:00:24]} Qe5 {[%emt 0:00:44]} 57. Re3 {[%emt 0:00:32]} Qf6 {[%emt 0:00:24]} 58. Qc2 {[%emt 0:00:30]} Ra1 {[%emt 0:00:22]} 59. Qd2 {[%emt 0:00:33]} 1/2-1/2